[Event "January 2 Early 2024"]
[Site "https://www.chess.com"]
[Date "2024.01.02"]
[Round "1"]
[White "Praggnanandhaa R"]
[Black "Petukhov, Dmitry"]
[Result "0-1"]
[Board "49"]
[TimeControl "180+1"]
[WhiteFideId "25059530"]
[BlackFideId "4142748"]
[WhiteElo "2948"]
[BlackElo "2495"]
[WhiteTeam "IND"]
[BlackTeam "RUS"]
[WhiteClock "0:00:00"]
[BlackClock "0:00:18"]

1. d4 {[%clk 0:03:00]}  Nf6 {[%clk 0:02:58]} 2. Bg5 {[%clk 0:03:00]}  g6 {[%clk 0:02:59]} 3. e3 {[%clk 0:02:57]}  Bg7 {[%clk 0:02:57]} 4. Nd2 {[%clk 0:02:57]}  d5 {[%clk 0:02:52]} 5. Ngf3 {[%clk 0:02:56]}  O-O {[%clk 0:02:52]} 6. Be2 {[%clk 0:02:54]}  c5 {[%clk 0:02:47]} 7. c3 {[%clk 0:02:53]}  Nc6 {[%clk 0:02:46]} 8. O-O {[%clk 0:02:51]}  Bf5 {[%clk 0:02:43]} 9. dxc5 {[%clk 0:02:51]}  e5 {[%clk 0:02:40]} 10. b4 {[%clk 0:02:45]}  a6 {[%clk 0:02:31]} 11. a4 {[%clk 0:02:32]}  h6 {[%clk 0:02:29]} 12. Bh4 {[%clk 0:02:28]}  g5 {[%clk 0:02:24]} 13. Bg3 {[%clk 0:02:28]}  d4 {[%clk 0:02:14]} 14. exd4 {[%clk 0:02:15]}  exd4 {[%clk 0:02:15]} 15. Nxd4 {[%clk 0:02:15]}  Nxd4 {[%clk 0:02:10]} 16. cxd4 {[%clk 0:02:16]}  Qxd4 {[%clk 0:02:10]} 17. Nc4 {[%clk 0:02:16]}  Ne4 {[%clk 0:02:03]} 18. Qb3 {[%clk 0:01:38]}  a5 {[%clk 0:01:48]} 19. Rad1 {[%clk 0:01:00]}  Qc3 {[%clk 0:01:43]} 20. Rd3 {[%clk 0:00:41]}  Qxb4 {[%clk 0:01:33]} 21. Qxb4 {[%clk 0:00:25]}  axb4 {[%clk 0:01:33]} 22. Rb3 {[%clk 0:00:25]}  Rxa4 {[%clk 0:01:25]} 23. Nb6 {[%clk 0:00:24]}  Ra2 {[%clk 0:01:22]} 24. Bf3 {[%clk 0:00:17]}  Nd2 {[%clk 0:01:21]} 25. Rxb4 {[%clk 0:00:10]}  Nxf1 {[%clk 0:01:21]} 26. Bd6 {[%clk 0:00:02]}  Re8 {[%clk 0:01:02]} 27. Ra4 {[%clk 0:00:01]}  Rxa4 {[%clk 0:00:52]} 28. Nxa4 {[%clk 0:00:02]}  Re1 {[%clk 0:00:52]} 29. h3 {[%clk 0:00:02]}  h5 {[%clk 0:00:47]} 30. Bxb7 {[%clk 0:00:01]}  h4 {[%clk 0:00:46]} 31. g4 {[%clk 0:00:02]}  Be6 {[%clk 0:00:31]} 32. Nb6 {[%clk 0:00:02]}  Rb1 {[%clk 0:00:30]} 33. Be4 {[%clk 0:00:01]}  Rc1 {[%clk 0:00:27]} 34. Bb7 {[%clk 0:00:01]}  Bd4 {[%clk 0:00:27]} 35. Kg2 {[%clk 0:00:01]}  Nd2 {[%clk 0:00:22]} 36. Na4 {[%clk 0:00:01]}  Bb3 {[%clk 0:00:20]} 37. c6 {[%clk 0:00:00]}  Bd5+ {[%clk 0:00:18]} 0-1

[Event "January 2 Early 2024"]
[Site "https://www.chess.com"]
[Date "2024.01.02"]
[Round "1"]
[White "Olsson, Linus"]
[Black "Kamsky, Gata"]
[Result "0-1"]
[Board "50"]
[TimeControl "180+1"]
[WhiteFideId "1706098"]
[BlackFideId "2000024"]
[WhiteElo "2492"]
[BlackElo "2946"]
[WhiteTeam "SWE"]
[BlackTeam "USA"]
[WhiteClock "0:00:07"]
[BlackClock "0:01:15"]

1. d4 {[%clk 0:03:00]}  f5 {[%clk 0:02:58]} 2. g3 {[%clk 0:02:54]}  Nf6 {[%clk 0:02:58]} 3. Bg2 {[%clk 0:02:54]}  g6 {[%clk 0:02:58]} 4. Nh3 {[%clk 0:02:52]}  Bg7 {[%clk 0:02:55]} 5. Nf4 {[%clk 0:02:52]}  O-O {[%clk 0:02:54]} 6. h4 {[%clk 0:02:48]}  d6 {[%clk 0:02:48]} 7. h5 {[%clk 0:02:47]}  e5 {[%clk 0:02:44]} 8. h6 {[%clk 0:02:40]}  Bh8 {[%clk 0:02:43]} 9. Nh3 {[%clk 0:02:33]}  e4 {[%clk 0:02:32]} 10. Bg5 {[%clk 0:02:27]}  Qe8 {[%clk 0:02:29]} 11. e3 {[%clk 0:02:17]}  Ng4 {[%clk 0:02:13]} 12. c4 {[%clk 0:02:07]}  Nc6 {[%clk 0:02:09]} 13. Nc3 {[%clk 0:02:07]}  Bf6 {[%clk 0:01:55]} 14. Qb3 {[%clk 0:01:53]}  Bxg5 {[%clk 0:01:47]} 15. Nxg5 {[%clk 0:01:54]}  Kh8 {[%clk 0:01:47]} 16. Nd5 {[%clk 0:01:41]}  Qd8 {[%clk 0:01:46]} 17. Nh3 {[%clk 0:01:32]}  Nxh6 {[%clk 0:01:42]} 18. O-O-O {[%clk 0:01:28]}  Kg7 {[%clk 0:01:41]} 19. Nhf4 {[%clk 0:01:24]}  Ng4 {[%clk 0:01:40]} 20. Rd2 {[%clk 0:01:06]}  Ne7 {[%clk 0:01:36]} 21. f3 {[%clk 0:01:02]}  exf3 {[%clk 0:01:34]} 22. Bxf3 {[%clk 0:01:03]}  c6 {[%clk 0:01:34]} 23. Nxe7 {[%clk 0:00:50]}  Qxe7 {[%clk 0:01:33]} 24. Bxg4 {[%clk 0:00:49]}  fxg4 {[%clk 0:01:34]} 25. Rdh2 {[%clk 0:00:41]}  h5 {[%clk 0:01:24]} 26. Nxh5+ {[%clk 0:00:25]}  gxh5 {[%clk 0:01:23]} 27. Rxh5 {[%clk 0:00:26]}  Bf5 {[%clk 0:01:21]} 28. Qd1 {[%clk 0:00:12]}  Qe4 {[%clk 0:01:17]} 29. Rxf5 {[%clk 0:00:07]}  Rxf5 {[%clk 0:01:15]} 0-1

[Event "January 2 Early 2024"]
[Site "https://www.chess.com"]
[Date "2024.01.02"]
[Round "1"]
[White "Aravindh, Chithambaram VR."]
[Black "Azali, Tannaz"]
[Result "1-0"]
[Board "57"]
[TimeControl "180+1"]
[WhiteFideId "5072786"]
[BlackFideId "12537721"]
[WhiteElo "2932"]
[BlackElo "2485"]
[WhiteTeam "IND"]
[BlackTeam "IRI"]
[WhiteClock "0:01:26"]
[BlackClock "0:00:47"]

1. b3 {[%clk 0:03:00]}  d5 {[%clk 0:02:56]} 2. Bb2 {[%clk 0:03:00]}  Nf6 {[%clk 0:02:57]} 3. Nf3 {[%clk 0:03:00]}  Bf5 {[%clk 0:02:57]} 4. g3 {[%clk 0:02:59]}  e6 {[%clk 0:02:57]} 5. Bg2 {[%clk 0:02:59]}  c6 {[%clk 0:02:57]} 6. d3 {[%clk 0:02:58]}  h6 {[%clk 0:02:57]} 7. Nbd2 {[%clk 0:02:58]}  Be7 {[%clk 0:02:56]} 8. O-O {[%clk 0:02:58]}  O-O {[%clk 0:02:57]} 9. Ne5 {[%clk 0:02:58]}  Nbd7 {[%clk 0:02:56]} 10. e4 {[%clk 0:02:58]}  Bh7 {[%clk 0:02:56]} 11. Qe2 {[%clk 0:02:58]}  dxe4 {[%clk 0:02:43]} 12. dxe4 {[%clk 0:02:56]}  Nxe5 {[%clk 0:02:41]} 13. Bxe5 {[%clk 0:02:57]}  Qa5 {[%clk 0:02:41]} 14. Nc4 {[%clk 0:02:53]}  Qa6 {[%clk 0:02:36]} 15. Rfe1 {[%clk 0:02:52]}  Rad8 {[%clk 0:02:35]} 16. a4 {[%clk 0:02:49]}  Nd7 {[%clk 0:02:22]} 17. Bc3 {[%clk 0:02:38]}  Nb6 {[%clk 0:02:21]} 18. Qg4 {[%clk 0:02:17]}  Bg6 {[%clk 0:01:40]} 19. Ne5 {[%clk 0:02:15]}  h5 {[%clk 0:01:40]} 20. Qh3 {[%clk 0:02:07]}  Bf6 {[%clk 0:01:25]} 21. Nxg6 {[%clk 0:01:56]}  fxg6 {[%clk 0:01:26]} 22. e5 {[%clk 0:01:52]}  Bg5 {[%clk 0:01:24]} 23. Bf1 {[%clk 0:01:46]}  Nc4 {[%clk 0:00:58]} 24. Bxc4 {[%clk 0:01:46]}  Qb6 {[%clk 0:00:59]} 25. Re2 {[%clk 0:01:46]}  Kh7 {[%clk 0:00:57]} 26. Bd3 {[%clk 0:01:37]}  Qc5 {[%clk 0:00:55]} 27. Qxh5+ {[%clk 0:01:33]}  Kg8 {[%clk 0:00:55]} 28. Qxg5 {[%clk 0:01:27]}  Qxc3 {[%clk 0:00:47]} 29. Rae1 {[%clk 0:01:26]} 1-0

[Event "January 2 Early 2024"]
[Site "https://www.chess.com"]
[Date "2024.01.02"]
[Round "1"]
[White "Ribeiro, Matheus Mendes Domingues"]
[Black "Kovalev, Vladislav"]
[Result "0-1"]
[Board "58"]
[TimeControl "180+1"]
[WhiteFideId "324226923"]
[BlackFideId "13504398"]
[WhiteElo "2481"]
[BlackElo "2929"]
[WhiteTeam "BRA"]
[BlackTeam "FID"]
[WhiteClock "0:00:25"]
[BlackClock "0:02:03"]

1. c4 {[%clk 0:03:00]}  g6 {[%clk 0:03:00]} 2. Nc3 {[%clk 0:03:00]}  Bg7 {[%clk 0:03:00]} 3. g3 {[%clk 0:02:59]}  e5 {[%clk 0:03:00]} 4. Bg2 {[%clk 0:02:59]}  d6 {[%clk 0:03:00]} 5. Nf3 {[%clk 0:03:00]}  f5 {[%clk 0:03:01]} 6. d3 {[%clk 0:02:57]}  Nf6 {[%clk 0:03:01]} 7. O-O {[%clk 0:02:58]}  O-O {[%clk 0:03:01]} 8. Rb1 {[%clk 0:02:59]}  a5 {[%clk 0:02:57]} 9. a3 {[%clk 0:02:59]}  h6 {[%clk 0:02:54]} 10. b4 {[%clk 0:02:54]}  axb4 {[%clk 0:02:55]} 11. axb4 {[%clk 0:02:55]}  g5 {[%clk 0:02:55]} 12. Bd2 {[%clk 0:02:49]}  Nc6 {[%clk 0:02:55]} 13. Ne1 {[%clk 0:02:35]}  f4 {[%clk 0:02:50]} 14. Nc2 {[%clk 0:02:26]}  Ne7 {[%clk 0:02:44]} 15. Ra1 {[%clk 0:01:45]}  Rb8 {[%clk 0:02:27]} 16. Ra7 {[%clk 0:01:21]}  Qe8 {[%clk 0:02:27]} 17. d4 {[%clk 0:01:05]}  Nc6 {[%clk 0:02:12]} 18. Bxc6 {[%clk 0:00:57]}  Qxc6 {[%clk 0:02:13]} 19. c5 {[%clk 0:00:50]}  Bh3 {[%clk 0:02:11]} 20. f3 {[%clk 0:00:39]}  Bxf1 {[%clk 0:02:10]} 21. b5 {[%clk 0:00:36]}  Qd7 {[%clk 0:02:04]} 22. Qxf1 {[%clk 0:00:35]}  exd4 {[%clk 0:02:04]} 23. Nxd4 {[%clk 0:00:31]}  dxc5 {[%clk 0:02:04]} 24. Nb3 {[%clk 0:00:27]}  c4 {[%clk 0:02:05]} 25. Na5 {[%clk 0:00:25]}  Qxd2 {[%clk 0:02:03]} 0-1

[Event "January 2 Early 2024"]
[Site "https://www.chess.com"]
[Date "2024.01.02"]
[Round "1"]
[White "Vasquez Schroeder, Rodrigo"]
[Black "Slade, Theodore"]
[Result "1-0"]
[Board "59"]
[TimeControl "180+1"]
[WhiteFideId "3400042"]
[BlackFideId "426547"]
[WhiteElo "2923"]
[BlackElo "2481"]
[WhiteTeam "CHI"]
[BlackTeam "ENG"]
[WhiteClock "0:00:15"]
[BlackClock "0:00:00"]

1. e4 {[%clk 0:03:00]}  e5 {[%clk 0:03:00]} 2. Nf3 {[%clk 0:03:00]}  Nc6 {[%clk 0:03:00]} 3. Bb5 {[%clk 0:03:00]}  Nf6 {[%clk 0:03:01]} 4. d3 {[%clk 0:03:00]}  Bc5 {[%clk 0:03:01]} 5. c3 {[%clk 0:03:01]}  O-O {[%clk 0:03:01]} 6. O-O {[%clk 0:03:01]}  d6 {[%clk 0:03:01]} 7. h3 {[%clk 0:03:00]}  Ne7 {[%clk 0:03:01]} 8. Ba4 {[%clk 0:03:00]}  Ng6 {[%clk 0:02:57]} 9. Re1 {[%clk 0:03:00]}  c6 {[%clk 0:02:53]} 10. Nbd2 {[%clk 0:03:00]}  Bb6 {[%clk 0:02:44]} 11. Nf1 {[%clk 0:02:58]}  Re8 {[%clk 0:02:36]} 12. Ng3 {[%clk 0:02:58]}  d5 {[%clk 0:02:31]} 13. Bg5 {[%clk 0:02:49]}  Be6 {[%clk 0:02:19]} 14. exd5 {[%clk 0:02:36]}  Qxd5 {[%clk 0:01:53]} 15. Bxf6 {[%clk 0:02:26]}  gxf6 {[%clk 0:01:53]} 16. Bb3 {[%clk 0:02:26]}  Qd7 {[%clk 0:01:45]} 17. Nh5 {[%clk 0:02:26]}  Qe7 {[%clk 0:01:41]} 18. d4 {[%clk 0:02:19]}  Rad8 {[%clk 0:01:30]} 19. Qc1 {[%clk 0:02:15]}  Kh8 {[%clk 0:00:53]} 20. Qh6 {[%clk 0:02:09]}  Rg8 {[%clk 0:00:47]} 21. dxe5 {[%clk 0:02:08]}  fxe5 {[%clk 0:00:37]} 22. Ng5 {[%clk 0:01:54]}  Nf8 {[%clk 0:00:32]} 23. Rxe5 {[%clk 0:01:40]}  Rg6 {[%clk 0:00:21]} 24. Nxe6 {[%clk 0:01:00]}  Rxh6 {[%clk 0:00:15]} 25. Nxd8 {[%clk 0:00:50]}  Qxd8 {[%clk 0:00:12]} 26. Bxf7 {[%clk 0:00:49]}  Rf6 {[%clk 0:00:06]} 27. Re8 {[%clk 0:00:39]}  Bxf2+ {[%clk 0:00:05]} 28. Kh1 {[%clk 0:00:32]}  Qd6 {[%clk 0:00:05]} 29. Nxf6 {[%clk 0:00:28]}  Qxf6 {[%clk 0:00:05]} 30. Rxf8+ {[%clk 0:00:24]}  Kg7 {[%clk 0:00:05]} 31. Rb8 {[%clk 0:00:20]}  Qxf7 {[%clk 0:00:04]} 32. Rf1 {[%clk 0:00:19]}  Qc7 {[%clk 0:00:03]} 33. Re8 {[%clk 0:00:17]}  Bc5 {[%clk 0:00:03]} 34. Re4 {[%clk 0:00:17]}  Bd6 {[%clk 0:00:02]} 35. Rg4+ {[%clk 0:00:17]}  Kh8 {[%clk 0:00:02]} 36. b4 {[%clk 0:00:16]}  h5 {[%clk 0:00:02]} 37. Rg5 {[%clk 0:00:16]}  Qh7 {[%clk 0:00:03]} 38. Rd1 {[%clk 0:00:12]}  Be7 {[%clk 0:00:03]} 39. Re5 {[%clk 0:00:11]}  Bf6 {[%clk 0:00:03]} 40. Re8+ {[%clk 0:00:10]}  Kg7 {[%clk 0:00:03]} 41. Rd7+ {[%clk 0:00:10]}  Kg6 {[%clk 0:00:04]} 42. Rxh7 {[%clk 0:00:10]}  Kxh7 {[%clk 0:00:04]} 43. Rb8 {[%clk 0:00:11]}  Bxc3 {[%clk 0:00:02]} 44. Rxb7+ {[%clk 0:00:11]}  Kg6 {[%clk 0:00:03]} 45. a3 {[%clk 0:00:11]}  a6 {[%clk 0:00:02]} 46. Rc7 {[%clk 0:00:11]}  Kf5 {[%clk 0:00:02]} 47. Rxc6 {[%clk 0:00:12]}  Bb2 {[%clk 0:00:03]} 48. Rxa6 {[%clk 0:00:12]}  h4 {[%clk 0:00:03]} 49. Ra5+ {[%clk 0:00:12]}  Kf4 {[%clk 0:00:03]} 50. b5 {[%clk 0:00:12]}  Bd4 {[%clk 0:00:03]} 51. a4 {[%clk 0:00:13]}  Bc5 {[%clk 0:00:02]} 52. Ra6 {[%clk 0:00:13]}  Kg3 {[%clk 0:00:02]} 53. Rg6+ {[%clk 0:00:14]}  Kf2 {[%clk 0:00:03]} 54. Rg4 {[%clk 0:00:14]}  Be7 {[%clk 0:00:02]} 55. b6 {[%clk 0:00:14]}  Bd6 {[%clk 0:00:02]} 56. b7 {[%clk 0:00:15]}  Kf1 {[%clk 0:00:02]} 57. Rxh4 {[%clk 0:00:14]}  Bc7 {[%clk 0:00:02]} 58. Rc4 {[%clk 0:00:14]}  Bb8 {[%clk 0:00:03]} 59. Rc8 {[%clk 0:00:14]}  Bd6 {[%clk 0:00:03]} 60. b8=Q {[%clk 0:00:15]}  Bxb8 {[%clk 0:00:00]} 61. Rxb8 {[%clk 0:00:15]} 1-0

[Event "January 2 Early 2024"]
[Site "https://www.chess.com"]
[Date "2024.01.02"]
[Round "1"]
[White "Adireddy Arjun"]
[Black "Bharath Subramaniyam H"]
[Result "1-0"]
[Board "60"]
[TimeControl "180+1"]
[WhiteFideId "25647709"]
[BlackFideId "46634827"]
[WhiteElo "2481"]
[BlackElo "2922"]
[WhiteTeam "IND"]
[BlackTeam "IND"]
[WhiteClock "0:00:35"]
[BlackClock "0:01:47"]

1. e4 {[%clk 0:03:00]}  c6 {[%clk 0:02:58]} 2. d4 {[%clk 0:02:59]}  d5 {[%clk 0:02:59]} 3. Nc3 {[%clk 0:03:00]}  g6 {[%clk 0:02:58]} 4. e5 {[%clk 0:02:48]}  Bg7 {[%clk 0:02:59]} 5. f4 {[%clk 0:02:49]}  Nh6 {[%clk 0:02:56]} 6. Nf3 {[%clk 0:02:49]}  Bg4 {[%clk 0:02:55]} 7. h3 {[%clk 0:02:45]}  Bxf3 {[%clk 0:02:55]} 8. Qxf3 {[%clk 0:02:46]}  e6 {[%clk 0:02:56]} 9. Be3 {[%clk 0:02:45]}  Nf5 {[%clk 0:02:52]} 10. g4 {[%clk 0:02:41]}  Nxe3 {[%clk 0:02:42]} 11. Qxe3 {[%clk 0:02:42]}  c5 {[%clk 0:02:36]} 12. O-O-O {[%clk 0:02:36]}  cxd4 {[%clk 0:02:31]} 13. Bb5+ {[%clk 0:02:34]}  Nc6 {[%clk 0:02:30]} 14. Qxd4 {[%clk 0:02:23]}  O-O {[%clk 0:02:29]} 15. Bxc6 {[%clk 0:02:15]}  bxc6 {[%clk 0:02:30]} 16. Na4 {[%clk 0:02:15]}  Qa5 {[%clk 0:02:27]} 17. b3 {[%clk 0:02:10]}  Rfc8 {[%clk 0:02:19]} 18. Nc5 {[%clk 0:01:56]}  Qxa2 {[%clk 0:02:19]} 19. Qa4 {[%clk 0:01:33]}  Qxa4 {[%clk 0:02:18]} 20. Nxa4 {[%clk 0:01:34]}  c5 {[%clk 0:02:18]} 21. Rhe1 {[%clk 0:01:27]}  c4 {[%clk 0:02:13]} 22. b4 {[%clk 0:01:28]}  Rcb8 {[%clk 0:02:13]} 23. c3 {[%clk 0:00:55]}  a5 {[%clk 0:02:12]} 24. b5 {[%clk 0:00:56]}  Rxb5 {[%clk 0:02:12]} 25. f5 {[%clk 0:00:57]}  Rb3 {[%clk 0:02:00]} 26. Kc2 {[%clk 0:00:50]}  Ra3 {[%clk 0:02:00]} 27. Nb2 {[%clk 0:00:46]}  Rb8 {[%clk 0:01:58]} 28. Ra1 {[%clk 0:00:38]}  Rxa1 {[%clk 0:01:55]} 29. Rxa1 {[%clk 0:00:39]}  Bxe5 {[%clk 0:01:55]} 30. fxe6 {[%clk 0:00:36]}  fxe6 {[%clk 0:01:47]} 31. Re1 {[%clk 0:00:35]} 1-0

[Event "January 2 Early 2024"]
[Site "https://www.chess.com"]
[Date "2024.01.02"]
[Round "1"]
[White "Donchenko, Alexander"]
[Black "Gryshko, Vitalii"]
[Result "1-0"]
[Board "61"]
[TimeControl "180+1"]
[WhiteFideId "24603295"]
[BlackFideId "14174286"]
[WhiteElo "2919"]
[BlackElo "2480"]
[WhiteTeam "GER"]
[BlackTeam "UKR"]
[WhiteClock "0:00:19"]
[BlackClock "0:00:00"]

1. d4 {[%clk 0:03:00]}  Nf6 {[%clk 0:02:59]} 2. Nf3 {[%clk 0:03:01]}  e6 {[%clk 0:02:58]} 3. c4 {[%clk 0:03:00]}  b6 {[%clk 0:02:50]} 4. g3 {[%clk 0:02:59]}  Bb7 {[%clk 0:02:50]} 5. Bg2 {[%clk 0:02:59]}  Be7 {[%clk 0:02:50]} 6. O-O {[%clk 0:02:59]}  O-O {[%clk 0:02:51]} 7. Re1 {[%clk 0:03:00]}  c5 {[%clk 0:02:41]} 8. d5 {[%clk 0:02:59]}  exd5 {[%clk 0:02:41]} 9. Nh4 {[%clk 0:02:59]}  Ne4 {[%clk 0:02:40]} 10. cxd5 {[%clk 0:02:59]}  Bxh4 {[%clk 0:02:40]} 11. Bxe4 {[%clk 0:02:59]}  Bf6 {[%clk 0:02:10]} 12. Nc3 {[%clk 0:02:59]}  d6 {[%clk 0:02:10]} 13. Qc2 {[%clk 0:02:59]}  h6 {[%clk 0:02:07]} 14. Bg2 {[%clk 0:02:56]}  Nd7 {[%clk 0:02:07]} 15. Ne4 {[%clk 0:02:54]}  Bxd5 {[%clk 0:01:54]} 16. Rd1 {[%clk 0:02:54]}  Bxe4 {[%clk 0:01:53]} 17. Bxe4 {[%clk 0:02:47]}  Rc8 {[%clk 0:01:37]} 18. Rxd6 {[%clk 0:02:47]}  Qe7 {[%clk 0:01:37]} 19. Bf4 {[%clk 0:02:40]}  Rcd8 {[%clk 0:01:10]} 20. Rad1 {[%clk 0:02:36]}  Ne5 {[%clk 0:00:58]} 21. R6d5 {[%clk 0:02:35]}  Rxd5 {[%clk 0:00:58]} 22. Bxd5 {[%clk 0:02:36]}  Bg5 {[%clk 0:00:55]} 23. Bxe5 {[%clk 0:02:15]}  Qxe5 {[%clk 0:00:53]} 24. b3 {[%clk 0:02:08]}  Rd8 {[%clk 0:00:44]} 25. Qc4 {[%clk 0:02:06]}  Qe7 {[%clk 0:00:26]} 26. e3 {[%clk 0:02:01]}  Bf6 {[%clk 0:00:24]} 27. Rd3 {[%clk 0:01:56]}  Kf8 {[%clk 0:00:17]} 28. h4 {[%clk 0:01:56]}  Rd6 {[%clk 0:00:16]} 29. Kg2 {[%clk 0:01:55]}  Qd7 {[%clk 0:00:15]} 30. a4 {[%clk 0:01:54]}  Be7 {[%clk 0:00:15]} 31. Qe4 {[%clk 0:01:47]}  Bf6 {[%clk 0:00:12]} 32. Kf1 {[%clk 0:01:40]}  Qe7 {[%clk 0:00:12]} 33. Qf3 {[%clk 0:01:37]}  Qe5 {[%clk 0:00:13]} 34. Kg2 {[%clk 0:01:33]}  g6 {[%clk 0:00:13]} 35. Qd1 {[%clk 0:01:20]}  Kg7 {[%clk 0:00:13]} 36. e4 {[%clk 0:01:20]}  Qe7 {[%clk 0:00:11]} 37. Qc2 {[%clk 0:01:08]}  Bd4 {[%clk 0:00:12]} 38. Rf3 {[%clk 0:01:02]}  Rf6 {[%clk 0:00:12]} 39. Rxf6 {[%clk 0:01:00]}  Qxf6 {[%clk 0:00:12]} 40. f4 {[%clk 0:01:00]}  g5 {[%clk 0:00:12]} 41. e5 {[%clk 0:00:59]}  Qg6 {[%clk 0:00:11]} 42. f5 {[%clk 0:00:49]}  Qh5 {[%clk 0:00:12]} 43. f6+ {[%clk 0:00:42]}  Kh8 {[%clk 0:00:05]} 44. Qe4 {[%clk 0:00:17]}  gxh4 {[%clk 0:00:04]} 45. Bc4 {[%clk 0:00:18]}  Qxe5 {[%clk 0:00:03]} 46. Qa8+ {[%clk 0:00:18]}  Kh7 {[%clk 0:00:00]} 47. Bd3+ {[%clk 0:00:19]} 1-0

[Event "January 2 Early 2024"]
[Site "https://www.chess.com"]
[Date "2024.01.02"]
[Round "1"]
[White "Shukhman, Anna"]
[Black "Corrales Jimenez, Fidel"]
[Result "0-1"]
[Board "62"]
[TimeControl "180+1"]
[WhiteFideId "54180058"]
[BlackFideId "3506690"]
[WhiteElo "2480"]
[BlackElo "2917"]
[WhiteTeam "FID"]
[BlackTeam "USA"]
[WhiteClock "0:01:14"]
[BlackClock "0:01:55"]

1. e4 {[%clk 0:03:00]}  c5 {[%clk 0:02:58]} 2. Nf3 {[%clk 0:03:00]}  Nc6 {[%clk 0:02:58]} 3. Bb5 {[%clk 0:02:59]}  g6 {[%clk 0:02:57]} 4. O-O {[%clk 0:02:59]}  Bg7 {[%clk 0:02:57]} 5. c3 {[%clk 0:02:59]}  Nf6 {[%clk 0:02:56]} 6. Re1 {[%clk 0:02:58]}  O-O {[%clk 0:02:56]} 7. d4 {[%clk 0:02:58]}  d5 {[%clk 0:02:56]} 8. e5 {[%clk 0:02:57]}  Ne4 {[%clk 0:02:56]} 9. Be3 {[%clk 0:02:57]}  Qb6 {[%clk 0:02:54]} 10. Bxc6 {[%clk 0:02:55]}  bxc6 {[%clk 0:02:55]} 11. Nbd2 {[%clk 0:02:39]}  Qxb2 {[%clk 0:02:54]} 12. Nxe4 {[%clk 0:02:39]}  dxe4 {[%clk 0:02:55]} 13. Nd2 {[%clk 0:02:39]}  Qxc3 {[%clk 0:02:52]} 14. Nxe4 {[%clk 0:02:39]}  Qa5 {[%clk 0:02:50]} 15. Nxc5 {[%clk 0:02:39]}  Rd8 {[%clk 0:02:48]} 16. e6 {[%clk 0:02:26]}  f5 {[%clk 0:02:39]} 17. Rb1 {[%clk 0:02:22]}  Qxa2 {[%clk 0:02:32]} 18. Bg5 {[%clk 0:01:57]}  Bxd4 {[%clk 0:02:29]} 19. Be3 {[%clk 0:01:47]}  Qd5 {[%clk 0:02:18]} 20. Bxd4 {[%clk 0:01:43]}  Qxd4 {[%clk 0:02:19]} 21. Qc2 {[%clk 0:01:43]}  Rd5 {[%clk 0:02:17]} 22. Rec1 {[%clk 0:01:35]}  a5 {[%clk 0:02:07]} 23. h3 {[%clk 0:01:31]}  Ba6 {[%clk 0:02:02]} 24. Rb6 {[%clk 0:01:25]}  Bb5 {[%clk 0:01:58]} 25. Nb3 {[%clk 0:01:14]}  Qxb6 {[%clk 0:01:55]} 0-1

[Event "January 2 Early 2024"]
[Site "https://www.chess.com"]
[Date "2024.01.02"]
[Round "1"]
[White "Galchenko, Matvey"]
[Black "Mekhane, Adam"]
[Result "1-0"]
[Board "63"]
[TimeControl "180+1"]
[WhiteFideId "24175480"]
[BlackFideId "36050601"]
[WhiteElo "2916"]
[BlackElo "2480"]
[WhiteTeam "FID"]
[BlackTeam "FRA"]
[WhiteClock "0:01:36"]
[BlackClock "0:00:02"]

1. e4 {[%clk 0:03:00]}  c5 {[%clk 0:02:59]} 2. c3 {[%clk 0:03:00]}  Nf6 {[%clk 0:02:55]} 3. e5 {[%clk 0:02:59]}  Nd5 {[%clk 0:02:55]} 4. Nf3 {[%clk 0:02:59]}  Nc6 {[%clk 0:02:53]} 5. Bc4 {[%clk 0:02:59]}  Nb6 {[%clk 0:02:53]} 6. Bb3 {[%clk 0:02:58]}  d5 {[%clk 0:02:53]} 7. exd6 {[%clk 0:02:57]}  Qxd6 {[%clk 0:02:53]} 8. O-O {[%clk 0:02:57]}  c4 {[%clk 0:02:48]} 9. Bc2 {[%clk 0:02:56]}  e6 {[%clk 0:02:44]} 10. b3 {[%clk 0:02:50]}  Be7 {[%clk 0:02:41]} 11. Na3 {[%clk 0:02:50]}  O-O {[%clk 0:02:29]} 12. Nxc4 {[%clk 0:02:48]}  Nxc4 {[%clk 0:02:29]} 13. bxc4 {[%clk 0:02:48]}  e5 {[%clk 0:02:30]} 14. Re1 {[%clk 0:02:39]}  f5 {[%clk 0:02:16]} 15. d4 {[%clk 0:02:37]}  e4 {[%clk 0:02:14]} 16. c5 {[%clk 0:02:36]}  Qg6 {[%clk 0:01:55]} 17. Nd2 {[%clk 0:02:30]}  Kh8 {[%clk 0:01:51]} 18. f3 {[%clk 0:02:21]}  Bh4 {[%clk 0:01:47]} 19. Re2 {[%clk 0:02:16]}  b6 {[%clk 0:01:23]} 20. Ba3 {[%clk 0:02:10]}  Ba6 {[%clk 0:01:22]} 21. fxe4 {[%clk 0:02:07]}  Bxe2 {[%clk 0:00:50]} 22. Qxe2 {[%clk 0:02:08]}  fxe4 {[%clk 0:00:49]} 23. Bxe4 {[%clk 0:02:03]}  Qh6 {[%clk 0:00:42]} 24. Nf3 {[%clk 0:02:00]}  bxc5 {[%clk 0:00:25]} 25. Nxh4 {[%clk 0:01:52]}  Qxh4 {[%clk 0:00:22]} 26. Bxc6 {[%clk 0:01:51]}  Rac8 {[%clk 0:00:14]} 27. d5 {[%clk 0:01:48]}  Qf6 {[%clk 0:00:07]} 28. Qe1 {[%clk 0:01:40]}  Qd6 {[%clk 0:00:04]} 29. Qe3 {[%clk 0:01:38]}  Qf4 {[%clk 0:00:02]} 30. Qxf4 {[%clk 0:01:38]}  Rxf4 {[%clk 0:00:03]} 31. Bxc5 {[%clk 0:01:39]}  Rc4 {[%clk 0:00:03]} 32. Bd4 {[%clk 0:01:38]}  Kg8 {[%clk 0:00:04]} 33. Re1 {[%clk 0:01:37]}  Kf7 {[%clk 0:00:03]} 34. a4 {[%clk 0:01:36]}  a6 {[%clk 0:00:02]} 35. a5 {[%clk 0:01:36]}  g6 {[%clk 0:00:02]} 36. Bb7 {[%clk 0:01:36]}  Kg8 {[%clk 0:00:02]} 37. Bxc8 {[%clk 0:01:36]} 1-0